fUST/lending_fUST_20250828
["ID","MTS","AMOUNT","RATE_DAILY","PERIOD"]
[381870379,1756382499397,-300.0,0.0001776,2]
[381870380,1756382500993,-329.18736648,0.0001776,2]
[381870381,1756382503425,-327.25835322,0.0001776,2]
[381870382,1756382505789,-282.87463941,0.0001776,2]
[381870383,1756382508184,-290.876747,0.0001776,2]
[381870384,1756382511425,-224.3214838,0.0001776,2]
[381870385,1756382513720,-191.348148,0.00017582,2]
[381870386,1756382517218,-231.53083892,0.00017582,2]
[381870387,1756382517239,-18.79952928,0.0001776,2]
[381870388,1756382521388,-153.48452266,0.0001776,2]
[381870389,1756382524966,-221.88966131,0.0001776,2]
[381870390,1756382526788,-230.25978769,0.0001776,2]
[381870391,1756382528984,-216.48548214,0.0001776,2]
[381870392,1756382533579,-276.26400764,0.0001776,2]
[381870394,1756382607933,-703.15453156,0.0001776,2]
[381870395,1756382610618,-103.53493568,0.0001776,2]
[381870396,1756382610643,-191.38124444,0.00017839,2]
[381870397,1756382610669,-33.60687571,0.00017939,2]
[381870398,1756382613539,-117.39312429,0.00017939,2]
[381870399,1756382613562,-52.67731771,0.00017939,2]
[381870400,1756382637624,-294.53927854,0.00017839,2]
[381870402,1756382639516,-229.8203481,0.00017839,2]
[381870403,1756382642383,-309.55653536,0.00017839,2]
[381870404,1756382645372,-197.76142539,0.00017839,2]
[381870405,1756382645393,-104.34055646,0.00017939,2]
[381870406,1756382645414,-23.16141675,0.00017939,2]
[381870407,1756382665828,313.0,0.00027,120]
[381870413,1756382815122,-300.0,0.00017555,2]
[381870414,1756382817815,-168.94994048,0.00017555,2]
[381870415,1756382820026,-160.97979663,0.00017555,2]
[381870416,1756382822145,-95.72246316,0.00017555,2]
[381870417,1756382822167,-106.56060487,0.00017555,2]
[381870418,1756382824283,-371.81852595,0.00017555,2]
[381870419,1756382828823,-202.86858547,0.00017555,2]
[381870420,1756382834978,-282.89808511,0.00017555,2]
[381870421,1756382835118,-161.50970736,0.00017555,2]
[381870422,1756382835803,-187.53316756,0.00017555,2]
[381870423,1756382836418,-170.01540875,0.00017555,2]
[381870424,1756382837024,-357.26940984,0.00017555,2]
[381870425,1756382837054,-177.95629517,0.00017555,2]
[381870426,1756382837710,-354.24,0.00017555,2]
[381870427,1756382839121,-527.0364022,0.00017555,2]
[381870428,1756382839146,-89.6135978,0.00017665,2]
[381870429,1756382839757,-69.12199054,0.00017665,2]
[381870430,1756382856769,384.01761246,0.00017665,2]
[381870431,1756382865532,193.33944947,0.00027397,120]
[381870433,1756382889382,316.12,0.0003022,60]
[381870435,1756382914819,-194.16201245,0.00017664,2]
[381870436,1756382914844,-12.41390352,0.00017664,2]
[381870437,1756382917000,-216.93645427,0.00017664,2]
[381870438,1756382917022,-15.67656418,0.00017665,2]
[381870439,1756382920293,-240.45324846,0.00017665,2]
[381870441,1756382921933,-437.14441397,0.00017665,2]
[381870442,1756382924553,-240.53584913,0.00017665,2]
[381870443,1756382927918,-151.16803761,0.00017665,2]
[381870444,1756382931869,-162.49542098,0.00017665,2]
[381870445,1756382933983,-163.37816409,0.00017665,2]
[381870446,1756382936776,-177.01210145,0.00017665,2]
[381870447,1756382939308,-285.82026568,0.00017665,2]
[381870448,1756382941570,-185.67179556,0.00017665,2]
[381870449,1756382943176,-122.70600359,0.00017665,2]
[381870451,1756382973534,470.184566,0.00013699,2]
[381870453,1756382991061,163.20464749,0.000273,120]
[381870454,1756383000253,163.0,0.000273,120]
[381870488,1756383032525,-625.91215203,0.00017765,2]
[381870537,1756383037854,-40.08784797,0.00017765,2]
[381870539,1756383037865,-616.125471,0.00017773,2]
[381870541,1756383037873,-4313.14601073,0.0001778,2]
[381870802,1756383040500,-466.75946888,0.0001778,2]
[381871327,1756383045583,-160.59501291,0.0001778,2]
[381871360,1756383045889,-1618.96517528,0.0001778,2]
[381871362,1756383045899,-300.0,0.00017938,2]
[381871364,1756383045909,-300.0,0.00017938,2]
[381871366,1756383045919,-1200.0,0.00017938,2]
[381871368,1756383045928,-326.0,0.00017939,2]
[381871370,1756383045938,-326.0,0.00017939,2]
[381871372,1756383045948,-326.0,0.00017939,2]
[381871374,1756383045958,-326.0,0.00017939,2]
[381871376,1756383045968,-326.0,0.00017939,2]
[381871378,1756383045977,-411.60345527,0.00017939,2]
[381871380,1756383045987,-151.0,0.00017939,2]
[381871382,1756383045997,-168.0,0.00018392,2]
[381871384,1756383046007,-168.0,0.00018449,2]
[381871386,1756383046016,-1172.0,0.00018483,2]
[381871388,1756383046026,-1172.0,0.00018531,2]
[381871390,1756383046036,-170.9691148,0.000188,2]
[381871392,1756383046045,-302.63687509,0.000189,2]
[381871394,1756383046055,-168.0,0.00018933,2]
[381871396,1756383046065,-168.0,0.00018936,2]
[381871398,1756383046074,-168.0,0.00018979,2]
[381871400,1756383046084,-187.78006525,0.00019067,2]
[381871402,1756383046093,-168.0,0.00019073,2]
[381871404,1756383046103,-260.50094717,0.00019077,2]
[381871406,1756383046112,-256.97121889,0.00019078,2]
[381871408,1756383046122,-765.43829676,0.00019078,2]
[381871410,1756383046132,-1932.02746306,0.00019078,2]
[381871412,1756383046141,-302.63687509,0.00019089,2]
[381871415,1756383046151,-168.0,0.00019116,2]
[381871417,1756383046161,-168.0,0.00019138,2]
[381871419,1756383046171,-744.14,0.00019168,3]
[381871421,1756383046180,-372.07,0.00019168,3]
[381871423,1756383046192,-186.03,0.00019168,3]
[381871425,1756383046202,-558.12,0.00019168,3]
[381871427,1756383046212,-500.0,0.00019173,2]
[381871429,1756383046222,-500.0,0.00019173,2]
[381871431,1756383046231,-500.0,0.00019173,2]
[381871433,1756383046241,-500.0,0.00019173,2]
[381871435,1756383046252,-500.0,0.00019173,2]
[381871437,1756383046263,-297.00419194,0.00019173,2]
[381871439,1756383046273,-500.0,0.00019173,2]
[381871441,1756383046282,-500.0,0.00019173,2]
[381871443,1756383046292,-500.0,0.00019173,2]
[381871445,1756383046302,-500.0,0.00019173,2]
[381871447,1756383046312,-500.0,0.00019173,2]
[381871449,1756383046321,-500.0,0.00019173,2]
[381871451,1756383046331,-23070.73522513,0.00019178,2]
[381871453,1756383046343,-739.00812989,0.00019178,2]
[381872256,1756383132381,-151.34458855,0.00017837,2]
[381872275,1756383187156,2991.61,0.000167,2]
[381872278,1756383201368,-158.73558834,0.000173,2]
[381872280,1756383204237,-0.26441166,0.000173,2]
[381872281,1756383214209,-170.070442,0.00017548,2]
[381872304,1756383397276,-158.55884179,0.00016935,2]
[381872306,1756383400616,-132.31790421,0.00016935,2]
[381872319,1756383475908,-151.37659072,0.00017833,2]
[381872320,1756383479460,-372.9583361,0.00017833,2]
[381872321,1756383482309,-179.249725,0.00017833,2]
[381872322,1756383486305,-193.76885521,0.00017833,2]
[381872326,1756383490656,-279.54054092,0.00017833,2]
[381872327,1756383492215,-207.8141755,0.00017833,2]
[381872340,1756383586946,-175.23044524,0.00017067,2]
[381872341,1756383590478,-288.41585567,0.00017067,2]
[381872342,1756383593740,-169.5488188,0.00017067,2]
[381872343,1756383595402,-315.77251102,0.00017067,2]
[381872344,1756383596948,-381.933449,0.00017067,2]
[381872345,1756383598560,-194.10088652,0.00017067,2]
[381872347,1756383601156,-176.74773164,0.00017067,2]
[381872348,1756383603039,-187.49038957,0.00017067,2]
[381872349,1756383604187,-221.49222127,0.00017066,2]
[381872350,1756383606968,-284.18481971,0.00017066,2]
[381872351,1756383609174,-272.33020414,0.00017066,2]
[381872352,1756383610718,-257.76423412,0.00017066,2]
[381872353,1756383612272,-164.22852076,0.00017066,2]
[381872354,1756383612296,-65.61337142,0.00017067,2]
[381872355,1756383614648,-422.82178038,0.00017067,2]
[381872356,1756383617363,-185.14443571,0.00017067,2]
[381872357,1756383619028,-185.99466714,0.00017067,2]
[381872359,1756383621341,-173.58055904,0.00017067,2]
[381872360,1756383624036,-189.60509885,0.00017067,2]
[381872362,1756383626708,-209.19474801,0.00017067,2]
[381872363,1756383629338,-160.0,0.00017067,2]
[381872364,1756383630890,-300.0,0.00017067,2]
[381872365,1756383633004,-283.87538416,0.00017067,2]
[381872366,1756383635386,-270.6470374,0.00017067,2]
[381872367,1756383637449,-248.56099412,0.00017067,2]
[381872368,1756383640914,-271.86637142,0.00017066,2]
[381872369,1756383644375,-167.88747449,0.00017066,2]
[381872370,1756383648922,-60.24615409,0.00017066,2]
[381872371,1756383648944,-203.39422408,0.00017066,2]
[381872372,1756383650913,-296.60577592,0.00017066,2]
[381872373,1756383650935,-5.97066246,0.00017066,2]
[381872374,1756383652432,-174.50574926,0.00017066,2]
[381872375,1756383652457,-15.93771538,0.00017066,2]
[381872376,1756383653965,-158.5635418,0.00017066,2]
[381872377,1756383655649,-256.29121886,0.00017066,2]
[381872378,1756383660508,-154.41488418,0.00017066,2]
[381872379,1756383662275,-421.88548426,0.00017066,2]
[381872380,1756383666161,-208.44662478,0.00017065,2]
[381872381,1756383669481,-91.55337522,0.00017065,2]
[381872382,1756383669510,-142.71613867,0.00017066,2]
[381872383,1756383672671,-228.92505178,0.00017066,2]
[381872384,1756383676649,-313.69747955,0.00017066,2]
[381872385,1756383679333,-216.20289512,0.00017066,2]
[381872386,1756383680781,-222.09753898,0.00017066,2]
[381872387,1756383683756,-151.0,0.00017066,2]
[381872388,1756383683780,-101.31783154,0.00017066,2]
[381872389,1756383685293,-269.35076599,0.00017066,2]
[381872390,1756383688565,-200.9269448,0.00017066,2]
[381872393,1756383691728,-218.21197835,0.00017066,2]
[381872395,1756383696146,-151.0,0.00017066,2]
[381872396,1756383696170,-87.00880194,0.00017066,2]
[381872397,1756383698939,-151.0,0.00017066,2]
[381872398,1756383698962,-15.26919927,0.00017066,2]
[381872399,1756383700602,-324.84347838,0.00017066,2]
[381872400,1756383704506,-350.6420727,0.00017066,2]
[381872401,1756383707762,-151.0,0.00017066,2]
[381872402,1756383707785,-21.92527006,0.00017066,2]
[381872403,1756383709294,-132.96074494,0.00017066,2]
[381872404,1756383709315,-91.34036697,0.00017066,2]
[381872405,1756383713727,-59.65963303,0.00017066,2]
[381872406,1756383713748,-100.39423711,0.00017066,2]
[381872407,1756383715991,-50.60576289,0.00017066,2]
[381872408,1756383716011,-257.55012611,0.00017066,2]
[381872409,1756383719879,-156.33392893,0.00017066,2]
[381872410,1756383721425,-366.29337005,0.00017066,2]
[381872411,1756383725290,-211.39596862,0.00017065,2]
[381872412,1756383727977,-88.60403138,0.00017065,2]
[381872413,1756383727999,-147.0908753,0.00017066,2]
[381872414,1756383729523,-151.70607044,0.00017066,2]
[381872415,1756383732899,-151.0,0.00017066,2]
[381872416,1756383732921,-59.44957694,0.00017066,2]
[381872418,1756383735720,-91.55042306,0.00017066,2]
[381872419,1756383735741,-145.70624498,0.00017066,2]
[381872420,1756383737303,-5.29375502,0.00017066,2]
[381872421,1756383737326,-151.0,0.00017066,2]
[381872422,1756383737352,-40.14657503,0.00017066,2]
[381872423,1756383740498,-151.0,0.00017066,2]
[381872424,1756383740522,-90.19932229,0.00017066,2]
[381872426,1756383743013,-60.80067771,0.00017066,2]
[381872427,1756383743034,-151.0,0.00017066,2]
[381872428,1756383743059,-80.70012794,0.00017066,2]
[381872429,1756383747072,-151.0,0.00017066,2]
[381872430,1756383747096,-56.17181784,0.00017066,2]
[381872431,1756383749698,-104.45779016,0.00017066,2]
[381872432,1756383749720,-89.9769368,0.00017066,2]
[381872433,1756383753531,-225.21412797,0.00017066,2]
[381872434,1756383756227,-171.19046165,0.00017065,2]
[381872435,1756383759264,-11.16020136,0.00017065,2]
[381872436,1756383759286,-145.42624632,0.00017065,2]
[381872437,1756383761001,-129.35962571,0.00017065,2]
[381872438,1756383761024,-157.76374814,0.00017065,2]
[381872439,1756383763071,-271.72944804,0.00017065,2]
[381872440,1756383765853,-361.56423042,0.00016966,2]
[381872441,1756383767903,-270.86907218,0.00016966,2]
[381872443,1756383770687,-234.37505167,0.00016966,2]
[381872445,1756383772855,-190.89508705,0.00016966,2]
[381872446,1756383774370,-180.97037585,0.00016966,2]
[381872447,1756383778626,-355.22610399,0.00016966,2]
[381872448,1756383782261,-156.22643591,0.00016966,2]
[381872449,1756383783805,-249.17123152,0.00016966,2]
[381872450,1756383785864,-300.0,0.00016966,2]
[381872451,1756383788777,-56.52029977,0.00016966,2]
[381872452,1756383788802,-213.33870943,0.00017064,2]
[381872453,1756383793741,-86.66129057,0.00017064,2]
[381872454,1756383793763,-70.50680382,0.00017065,2]
[381872455,1756383793784,-56.11418643,0.00017065,2]
[381872456,1756383796687,-194.60233257,0.00017065,2]
[381872457,1756383798763,-244.00134479,0.00017065,2]
[381872458,1756383800835,-5.28213621,0.00017065,2]
[381872459,1756383800859,-439.03307025,0.00017065,2]
[381872460,1756383803757,-60.96692975,0.00017065,2]
[381872461,1756383803780,-97.42603702,0.00017065,2]
[381872462,1756383806469,-361.21439417,0.00017065,2]
[381872463,1756383807015,200.0,0.00017065,10]
[381872464,1756383807321,200.0,0.00017065,10]
[381872465,1756383809626,-41.35956881,0.00017065,2]
[381872466,1756383809649,-227.66875745,0.00017065,2]
[381872467,1756383813177,-151.0,0.00017065,2]
[381872468,1756383813202,-165.75617269,0.00017065,2]
[381872469,1756383815726,-151.0,0.00017065,2]
[381872470,1756383815787,-69.38860932,0.00017065,2]
[381872471,1756383817744,-151.0,0.00017065,2]
[381872472,1756383817768,-37.18646054,0.00017065,2]
[381872473,1756383817789,-43.70696065,0.00017065,2]
[381872474,1756383820078,-169.26903636,0.00017065,2]
[381872475,1756383821643,-186.23789014,0.00017065,2]
[381872476,1756383821665,-99.58237554,0.00017065,2]
[381872477,1756383824208,-151.0,0.00017065,2]
[381872478,1756383824232,-14.86420085,0.00017065,2]
[381872479,1756383825774,-175.54632062,0.00016894,2]
[381872480,1756383828093,-302.57643837,0.00016894,2]
[381872481,1756383830348,-232.47023236,0.00016894,2]
[381872482,1756383855096,-159.71473598,0.00016894,2]
[381872483,1756383857850,-275.256478,0.00016894,2]
[381872484,1756383857874,-1.85480341,0.00016965,2]
[381872485,1756383862182,-168.048268,0.00016965,2]
[381872486,1756383864362,-202.77507879,0.00016965,2]
[381872487,1756383866912,-71.27752051,0.00016965,2]
[381872488,1756383866935,-175.6695276,0.00017064,2]
[381872489,1756383868869,-124.3304724,0.00017064,2]
[381872490,1756383868891,-260.55962647,0.00017065,2]
[381872491,1756383870603,-258.67802865,0.00017065,2]
[381872492,1756383872197,-178.41417825,0.00016893,2]
[381872493,1756383875593,-279.42128194,0.00016893,2]
[381872499,1756384040635,446.675337,0.00013699,2]
[381872500,1756384045534,2827.2558326,0.00016065,2]
[381872501,1756384076107,704.44199769,0.000167,2]
[381872508,1756384120348,150.9999997,0.0002,120]
[381872543,1756384146150,-300.0,0.0001696,2]
[381872544,1756384146174,-225.21412797,0.00016961,2]
[381872545,1756384146196,-500.0,0.00016961,2]
[381872546,1756384146216,-380.82130462,0.00016961,2]
[381872547,1756384146238,-500.0,0.00016961,2]
[381872548,1756384146259,-273.44618136,0.00016961,2]
[381872549,1756384146279,-613.86886288,0.00016961,2]
[381872550,1756384146301,-500.0,0.00016961,2]
[381872551,1756384146321,-500.0,0.00016961,2]
[381872552,1756384146344,-500.0,0.00016961,2]
[381872553,1756384146365,-500.0,0.00016961,2]
[381872554,1756384146386,-500.0,0.00016961,2]
[381872555,1756384146408,-500.0,0.00016961,2]
[381872556,1756384146429,-500.0,0.00016961,2]
[381872557,1756384146450,-500.0,0.00016961,2]
[381872558,1756384146471,-500.0,0.00016961,2]
[381872559,1756384146491,-500.0,0.00016961,2]
[381872560,1756384146512,-500.0,0.00016961,2]
[381872561,1756384146532,-500.0,0.00016961,2]
[381872562,1756384146555,-500.0,0.00016961,2]
[381872563,1756384146576,-500.0,0.00016961,2]
[381872564,1756384146597,-339.01845227,0.00016961,2]
[381872577,1756384232071,-846.70951802,0.00016943,2]
[381872578,1756384232081,-300.0,0.0001696,2]
[381872579,1756384232091,-300.0,0.0001696,2]
[381872580,1756384232101,-300.0,0.0001696,2]
[381872581,1756384232110,-300.0,0.0001696,2]
[381872582,1756384232120,-300.0,0.0001696,2]
[381872583,1756384232129,-1200.0,0.0001696,2]
[381872585,1756384232139,-160.98154773,0.00016961,2]
[381872587,1756384232149,-500.0,0.00016961,2]
[381872588,1756384232159,-500.0,0.00016961,2]
[381872589,1756384232168,-500.0,0.00016961,2]
[381872590,1756384232177,-500.0,0.00016961,2]
[381872591,1756384232186,-500.0,0.00016961,2]
[381872592,1756384232198,-500.0,0.00016961,2]
[381872593,1756384232208,-500.0,0.00016961,2]
[381872594,1756384232222,-500.0,0.00016961,2]
[381872595,1756384232231,-500.0,0.00016961,2]
[381872596,1756384232242,-500.0,0.00016961,2]
[381872597,1756384232252,-500.0,0.00016961,2]
[381872598,1756384232261,-500.0,0.00016961,2]
[381872599,1756384232271,-500.0,0.00016961,2]
[381872600,1756384232281,-500.0,0.00016961,2]
[381872601,1756384232291,-500.0,0.00016961,2]
[381872602,1756384232301,-296.35,0.00016961,2]
[381872603,1756384232311,-500.0,0.00016961,2]
[381872604,1756384232320,-500.0,0.00016961,2]
[381872605,1756384232330,-500.0,0.00016961,2]
[381872606,1756384232340,-500.0,0.00016961,2]
[381872607,1756384232349,-500.0,0.00016961,2]
[381872608,1756384232359,-500.0,0.00016961,2]
[381872609,1756384232368,-358.18147546,0.00016961,2]
[381872610,1756384232378,-500.0,0.00016961,2]
[381872611,1756384232388,-500.0,0.00016961,2]
[381872612,1756384232398,-500.0,0.00016961,2]
[381872613,1756384232407,-500.0,0.00016961,2]
[381872614,1756384232417,-500.0,0.00016961,2]
[381872615,1756384232426,-500.0,0.00016961,2]
[381872616,1756384232436,-500.0,0.00016961,2]
[381872617,1756384232446,-500.0,0.00016961,2]
[381872618,1756384232456,-500.0,0.00016961,2]
[381872619,1756384232468,-203.01840041,0.00016961,2]
[381872620,1756384232477,-500.0,0.00016961,2]
[381872621,1756384232487,-500.0,0.00016961,2]
[381872622,1756384232496,-500.0,0.00016961,2]
[381872623,1756384232505,-500.0,0.00016961,2]
[381872624,1756384232514,-2061.34065235,0.00016962,2]
[381872625,1756384232524,-434.08,0.00017056,3]
[381872626,1756384232532,-217.04,0.00017056,3]
[381872627,1756384232543,-651.12,0.00017056,3]
[381872628,1756384232552,-500.0,0.00017062,2]
[381872629,1756384232562,-151.0,0.00017062,2]
[381872630,1756384232571,-151.0,0.00017062,2]
[381872631,1756384232581,-151.0,0.00017062,2]
[381872632,1756384232590,-151.0,0.00017062,2]
[381872633,1756384232600,-151.0,0.00017062,2]
[381872634,1756384232610,-332.607607,0.00017062,2]
[381872635,1756384232620,-151.0,0.00017062,2]
[381872636,1756384232630,-332.607607,0.00017062,2]
[381872637,1756384232640,-172.974853,0.00017062,2]
[381872638,1756384232650,-332.607607,0.00017062,2]
[381872639,1756384232660,-151.0,0.00017062,2]
[381872640,1756384232669,-332.607607,0.00017062,2]
[381872641,1756384232679,-851.913035,0.00017062,2]
[381872642,1756384232689,-851.913035,0.00017062,2]
[381872643,1756384232699,-851.913035,0.00017062,2]
[381872644,1756384232708,-851.913035,0.00017062,2]
[381872645,1756384232721,-151.0,0.00017062,2]
[381872646,1756384232732,-151.0,0.00017062,2]
[381872647,1756384232743,-151.0,0.00017062,2]
[381872648,1756384232754,-789.622094,0.00017062,2]
[381872649,1756384232764,-789.622094,0.00017062,2]
[381872650,1756384232773,-789.622094,0.00017062,2]
[381872651,1756384232783,-789.622094,0.00017062,2]
[381872652,1756384232793,-211.130364,0.00017062,2]
[381872653,1756384232803,-211.130364,0.00017062,2]
[381872654,1756384232813,-151.0,0.00017062,2]
[381872655,1756384232823,-151.0,0.00017062,2]
[381872656,1756384232832,-211.130364,0.00017062,2]
[381872657,1756384232842,-211.130364,0.00017062,2]
[381872658,1756384232851,-151.0,0.00017062,2]
[381872659,1756384232861,-151.0,0.00017062,2]
[381872660,1756384232871,-151.0,0.00017062,2]
[381872661,1756384232882,-151.0,0.00017062,2]
[381872662,1756384232891,-151.0,0.00017062,2]
[381872663,1756384232900,-151.0,0.00017062,2]
[381872664,1756384232910,-151.0,0.00017062,2]
[381872665,1756384232920,-151.0,0.00017062,2]
[381872666,1756384232929,-151.0,0.00017062,2]
[381872667,1756384232939,-151.0,0.00017062,2]
[381872668,1756384232949,-151.0,0.00017062,2]
[381872669,1756384232960,-151.0,0.00017062,2]
[381872670,1756384232973,-153.954127,0.00017062,2]
[381872671,1756384232982,-470.771885,0.00017062,2]
[381872672,1756384232992,-470.771885,0.00017062,2]
[381872673,1756384233002,-470.771885,0.00017062,2]
[381872674,1756384233012,-470.771885,0.00017062,2]
[381872675,1756384233022,-151.0,0.00017062,2]
[381872676,1756384233032,-151.0,0.00017062,2]
[381872677,1756384233042,-151.0,0.00017062,2]
[381872678,1756384233052,-151.0,0.00017062,2]
[381872679,1756384233063,-151.0,0.00017062,2]
[381872680,1756384233072,-151.0,0.00017062,2]
[381872681,1756384233086,-10792.791194,0.00017063,2]
[381872682,1756384233097,-151.0,0.00017063,2]
[381872683,1756384233109,-151.0,0.00017063,2]
[381872684,1756384233120,-151.0,0.00017063,2]
[381872685,1756384233130,-208.769232,0.00017063,2]
[381872686,1756384233141,-151.0,0.00017063,2]
[381872687,1756384233151,-151.0,0.00017063,2]
[381872688,1756384233161,-208.769232,0.00017063,2]
[381872689,1756384233172,-151.0,0.00017063,2]
[381872690,1756384233183,-208.769232,0.00017063,2]
[381872691,1756384233195,-208.769232,0.00017063,2]
[381872692,1756384233205,-151.0,0.00017063,2]
[381872693,1756384233215,-151.0,0.00017063,2]
[381872694,1756384233227,-151.0,0.00017063,2]
[381872695,1756384233239,-151.0,0.00017063,2]
[381872696,1756384233248,-151.0,0.00017063,2]
[381872697,1756384233258,-203.573912,0.00017063,2]
[381872698,1756384233267,-151.0,0.00017063,2]
[381872699,1756384233278,-151.0,0.00017063,2]
[381872700,1756384233288,-151.0,0.00017063,2]
[381872701,1756384233298,-151.0,0.00017063,2]
[381872702,1756384233307,-151.0,0.00017063,2]
[381872703,1756384233317,-151.0,0.00017063,2]
[381872704,1756384233326,-151.0,0.00017063,2]
[381872705,1756384233336,-151.0,0.00017063,2]
[381872706,1756384233346,-151.0,0.00017063,2]
[381872707,1756384233356,-151.0,0.00017063,2]
[381872708,1756384233366,-151.0,0.00017063,2]
[381872709,1756384233375,-332.607607,0.00017063,2]
[381872710,1756384233384,-151.0,0.00017063,2]
[381872711,1756384233394,-332.607607,0.00017063,2]
[381872712,1756384233403,-332.607607,0.00017063,2]
[381872713,1756384233413,-151.0,0.00017063,2]
[381872714,1756384233423,-332.607607,0.00017063,2]
[381872715,1756384233433,-851.913035,0.00017063,2]
[381872716,1756384233443,-851.913035,0.00017063,2]
[381872717,1756384233453,-851.913035,0.00017063,2]
[381872718,1756384233462,-851.913035,0.00017063,2]
[381872719,1756384233475,-156.32959,0.00017063,2]
[381872720,1756384233485,-151.000001,0.00017063,2]
[381872721,1756384233495,-151.0,0.00017063,2]
[381872722,1756384233505,-789.622094,0.00017063,2]
[381872723,1756384233516,-789.622094,0.00017063,2]
[381872724,1756384233536,-789.622094,0.00017063,2]
[381872725,1756384233548,-789.622094,0.00017063,2]
[381872726,1756384233559,-211.130364,0.00017063,2]
[381872727,1756384233570,-211.130364,0.00017063,2]
[381872728,1756384233580,-151.0,0.00017063,2]
[381872729,1756384233590,-151.0,0.00017063,2]
[381872730,1756384233600,-211.130364,0.00017063,2]
[381872731,1756384233610,-151.0,0.00017063,2]
[381872732,1756384233620,-151.0,0.00017063,2]
[381872733,1756384233630,-211.130364,0.00017063,2]
[381872734,1756384233640,-151.0,0.00017063,2]
[381872735,1756384233650,-151.0,0.00017063,2]
[381872736,1756384233660,-151.0,0.00017063,2]
[381872737,1756384233670,-151.0,0.00017063,2]
[381872738,1756384233681,-164.543916,0.00017063,2]
[381872739,1756384233691,-151.0,0.00017063,2]
[381872740,1756384233701,-151.0,0.00017063,2]
[381872741,1756384233711,-151.0,0.00017063,2]
[381872742,1756384233723,-470.771885,0.00017063,2]
[381872743,1756384233733,-470.771885,0.00017063,2]
[381872744,1756384233742,-470.771885,0.00017063,2]
[381872745,1756384233752,-470.771885,0.00017063,2]
[381872746,1756384233762,-151.0,0.00017063,2]
[381872747,1756384233772,-151.0,0.00017063,2]
[381872748,1756384233781,-151.0,0.00017063,2]
[381872749,1756384233791,-291.507741,0.00017063,2]
[381872750,1756384233800,-151.0,0.00017064,2]
[381872751,1756384233810,-151.0,0.00017064,2]
[381872752,1756384233820,-151.0,0.00017064,2]
[381872753,1756384233829,-162.291453,0.00017064,2]
[381872754,1756384233839,-151.0,0.00017064,2]
[381872755,1756384233848,-151.0,0.00017064,2]
[381872756,1756384233858,-151.0,0.00017064,2]
[381872757,1756384233868,-151.0,0.00017064,2]
[381872758,1756384233878,-151.0,0.00017064,2]
[381872759,1756384233887,-151.0,0.00017064,2]
[381872760,1756384233897,-151.0,0.00017064,2]
[381872761,1756384233906,-151.0,0.00017064,2]
[381872762,1756384233915,-244.87546,0.00017064,2]
[381872763,1756384233925,-244.87546,0.00017064,2]
[381872764,1756384233934,-151.0,0.00017064,2]
[381872765,1756384233944,-244.87546,0.00017064,2]
[381872766,1756384233954,-151.0,0.00017064,2]
[381872767,1756384233964,-244.87546,0.00017064,2]
[381872768,1756384233978,-151.0,0.00017064,2]
[381872769,1756384233987,-151.0,0.00017064,2]
[381872770,1756384233996,-151.0,0.00017064,2]
[381872771,1756384234006,-151.0,0.00017064,2]
[381872772,1756384234015,-151.0,0.00017064,2]
[381872773,1756384234024,-151.0,0.00017064,2]
[381872774,1756384234034,-151.0,0.00017064,2]
[381872775,1756384234043,-151.0,0.00017064,2]
[381872776,1756384234053,-151.0,0.00017064,2]
[381872777,1756384234063,-151.0,0.00017064,2]
[381872778,1756384234073,-151.0,0.00017064,2]